[Event "Late-Titled-Tuesday-Blitz-February-06-2024"]
[Site "Chess.com"]
[Date "2024.02.06"]
[Round "7"]
[White "Mariia89"]
[Black "cthake"]
[Result "1-0"]
[WhiteElo "2195"]
[BlackElo "1820"]
[TimeControl "180+1"]
[EndTime "15:17:22 PST"]
[Termination "Mariia89 won on time"]

1. d4 {[%clk 0:02:59.9]} 1... Nf6 {[%clk 0:02:58.2]} 2. Nf3 {[%clk 0:02:59.9]}
2... e6 {[%clk 0:02:57.2]} 3. Bg5 {[%clk 0:02:59.4]} 3... Be7 {[%clk 0:02:51.7]}
4. e3 {[%clk 0:02:59.5]} 4... d5 {[%clk 0:02:51.5]} 5. Bd3 {[%clk 0:02:58.9]}
5... c6 {[%clk 0:02:50.8]} 6. c3 {[%clk 0:02:58]} 6... Nbd7 {[%clk 0:02:50.6]}
7. Ne5 {[%clk 0:02:58.2]} 7... O-O {[%clk 0:02:48.7]} 8. Nd2 {[%clk 0:02:58]}
8... h6 {[%clk 0:02:46.1]} 9. Bh4 {[%clk 0:02:52.9]} 9... Nxe5 {[%clk
0:02:41.5]} 10. dxe5 {[%clk 0:02:52.9]} 10... Nd7 {[%clk 0:02:41.3]} 11. Bg3
{[%clk 0:02:51.8]} 11... Qb6 {[%clk 0:02:31.1]} 12. b3 {[%clk 0:02:36.4]} 12...
c5 {[%clk 0:02:27.1]} 13. O-O {[%clk 0:02:26.9]} 13... a5 {[%clk 0:02:15.9]} 14.
Qg4 {[%clk 0:02:14.6]} 14... Qd8 {[%clk 0:01:30.9]} 15. Bf4 {[%clk 0:02:12]}
15... Qe8 {[%clk 0:01:12.3]} 16. Bxh6 {[%clk 0:02:00.8]} 16... g6 {[%clk
0:00:35]} 17. Bxf8 {[%clk 0:01:41.3]} 17... Qxf8 {[%clk 0:00:34.9]} 18. f4
{[%clk 0:01:38.9]} 18... Qg7 {[%clk 0:00:32.2]} 19. Rf3 {[%clk 0:01:34.2]} 19...
a4 {[%clk 0:00:22.4]} 20. Raf1 {[%clk 0:01:20.3]} 20... axb3 {[%clk 0:00:22.2]}
21. axb3 {[%clk 0:01:19.3]} 21... Ra2 {[%clk 0:00:20.4]} 22. Nb1 {[%clk
0:01:11.6]} 22... Rb2 {[%clk 0:00:18.4]} 23. h4 {[%clk 0:00:51.8]} 23... Rxb3
{[%clk 0:00:14.7]} 24. Rg3 {[%clk 0:00:45.7]} 24... c4 {[%clk 0:00:14.4]} 25.
Bc2 {[%clk 0:00:42.8]} 25... Rb2 {[%clk 0:00:13.3]} 26. Rf2 {[%clk 0:00:43]}
26... Nc5 {[%clk 0:00:10.1]} 27. h5 {[%clk 0:00:40.9]} 27... Ne4 {[%clk
0:00:03.4]} 28. Bxe4 {[%clk 0:00:39.8]} 28... Rxf2 {[%clk 0:00:03.2]} 29. hxg6
{[%clk 0:00:30.7]} 29... fxg6 {[%clk 0:00:02.7]} 30. Kxf2 {[%clk 0:00:29]} 1-0

[Event "Late-Titled-Tuesday-Blitz-February-06-2024"]
[Site "Chess.com"]
[Date "2024.02.06"]
[Round "7"]
[White "SocoLoco"]
[Black "boguszp"]
[Result "1-0"]
[WhiteElo "2176"]
[BlackElo "2054"]
[TimeControl "180+1"]
[EndTime "15:17:25 PST"]
[Termination "SocoLoco won on time"]

1. e4 {[%clk 0:03:00.9]} 1... c6 {[%clk 0:02:55.4]} 2. b3 {[%clk 0:02:59.8]}
2... d5 {[%clk 0:02:55.2]} 3. Bb2 {[%clk 0:03:00.3]} 3... dxe4 {[%clk
0:02:54.1]} 4. Nc3 {[%clk 0:03:00.9]} 4... f5 {[%clk 0:02:52.6]} 5. f3 {[%clk
0:02:59.6]} 5... e5 {[%clk 0:02:44.2]} 6. fxe4 {[%clk 0:02:55.4]} 6... Nf6
{[%clk 0:02:36.4]} 7. d3 {[%clk 0:02:47]} 7... Bb4 {[%clk 0:02:32.8]} 8. exf5
{[%clk 0:02:39.6]} 8... Bxf5 {[%clk 0:02:21.8]} 9. a3 {[%clk 0:02:39.7]} 9...
Bc5 {[%clk 0:02:15.2]} 10. Nf3 {[%clk 0:02:38.4]} 10... O-O {[%clk 0:02:07.6]}
11. Qe2 {[%clk 0:01:52.7]} 11... Re8 {[%clk 0:01:51.6]} 12. O-O-O {[%clk
0:01:46.7]} 12... Nbd7 {[%clk 0:01:48.1]} 13. Ne4 {[%clk 0:01:38.7]} 13... Bxe4
{[%clk 0:01:35.5]} 14. dxe4 {[%clk 0:01:38]} 14... Qe7 {[%clk 0:01:27.5]} 15. b4
{[%clk 0:01:18.1]} 15... Bb6 {[%clk 0:01:21.7]} 16. Qc4+ {[%clk 0:01:06.4]}
16... Kh8 {[%clk 0:01:19.6]} 17. Ng5 {[%clk 0:01:06.7]} 17... Rf8 {[%clk
0:01:10.5]} 18. h4 {[%clk 0:01:05.8]} 18... a5 {[%clk 0:01:03.9]} 19. c3 {[%clk
0:00:45.1]} 19... axb4 {[%clk 0:01:01.1]} 20. cxb4 {[%clk 0:00:43]} 20... Be3+
{[%clk 0:00:56.4]} 21. Kb1 {[%clk 0:00:42.3]} 21... Ng4 {[%clk 0:00:50]} 22. Qe2
{[%clk 0:00:33]} 22... Ndf6 {[%clk 0:00:35.2]} 23. Nh3 {[%clk 0:00:28.1]} 23...
Rad8 {[%clk 0:00:27.8]} 24. g3 {[%clk 0:00:26.8]} 24... Rxd1+ {[%clk 0:00:23.5]}
25. Qxd1 {[%clk 0:00:27.7]} 25... Rd8 {[%clk 0:00:22.4]} 26. Qb3 {[%clk
0:00:26.4]} 26... Bd4 {[%clk 0:00:18.5]} 27. Bc4 {[%clk 0:00:24]} 27... Nxe4
{[%clk 0:00:15.2]} 28. Ng5 {[%clk 0:00:22.6]} 28... Nd2+ {[%clk 0:00:12.7]} 29.
Ka2 {[%clk 0:00:22.5]} 29... Nxb3 {[%clk 0:00:12.6]} 30. Nf7+ {[%clk 0:00:23.4]}
30... Kg8 {[%clk 0:00:04.2]} 31. Nxd8+ {[%clk 0:00:24]} 31... Kf8 {[%clk
0:00:04.3]} 32. Nxc6 {[%clk 0:00:23.8]} 32... bxc6 {[%clk 0:00:03.4]} 33. Bxb3
{[%clk 0:00:23.9]} 33... Ke8 {[%clk 0:00:01.8]} 34. Rf1 {[%clk 0:00:24.4]} 1-0

[Event "Late-Titled-Tuesday-Blitz-February-06-2024"]
[Site "Chess.com"]
[Date "2024.02.06"]
[Round "7"]
[White "Bkmzzzzz"]
[Black "aleksanchess"]
[Result "1-0"]
[WhiteElo "2415"]
[BlackElo "2259"]
[TimeControl "180+1"]
[EndTime "15:17:26 PST"]
[Termination "Bkmzzzzz won by resignation"]

1. e4 {[%clk 0:03:00.2]} 1... e6 {[%clk 0:02:58.5]} 2. Nf3 {[%clk 0:03:00]} 2...
d5 {[%clk 0:02:57.8]} 3. exd5 {[%clk 0:03:00.9]} 3... exd5 {[%clk 0:02:57.8]} 4.
d4 {[%clk 0:03:01.5]} 4... Nf6 {[%clk 0:02:50]} 5. Bd3 {[%clk 0:03:01.7]} 5...
Bd6 {[%clk 0:02:48.9]} 6. O-O {[%clk 0:03:01.9]} 6... O-O {[%clk 0:02:49.1]} 7.
Bg5 {[%clk 0:03:01.1]} 7... h6 {[%clk 0:02:39.4]} 8. Bh4 {[%clk 0:03:00.1]} 8...
c5 {[%clk 0:02:36.8]} 9. dxc5 {[%clk 0:02:56.3]} 9... Bxc5 {[%clk 0:02:37.1]}
10. Nc3 {[%clk 0:02:56.7]} 10... Be6 {[%clk 0:02:34.1]} 11. Re1 {[%clk
0:02:47.9]} 11... Nc6 {[%clk 0:02:33.4]} 12. Ne2 {[%clk 0:02:37.6]} 12... g5
{[%clk 0:02:28.8]} 13. Bg3 {[%clk 0:02:37.2]} 13... Ne4 {[%clk 0:02:28]} 14.
Bxe4 {[%clk 0:01:48.8]} 14... dxe4 {[%clk 0:02:27.3]} 15. Ne5 {[%clk 0:01:42.8]}
15... f5 {[%clk 0:02:10.4]} 16. Nxc6 {[%clk 0:01:42]} 16... bxc6 {[%clk
0:02:10.6]} 17. Be5 {[%clk 0:01:38.7]} 17... Qd5 {[%clk 0:02:00.7]} 18. Qxd5
{[%clk 0:01:09.8]} 18... cxd5 {[%clk 0:02:00.5]} 19. c3 {[%clk 0:01:09.4]} 19...
f4 {[%clk 0:01:58]} 20. Bd4 {[%clk 0:01:06.7]} 20... Bd6 {[%clk 0:01:52.7]} 21.
Rad1 {[%clk 0:00:59.4]} 21... f3 {[%clk 0:01:51.7]} 22. gxf3 {[%clk 0:00:46]}
22... Rxf3 {[%clk 0:01:51.7]} 23. Nc1 {[%clk 0:00:41.4]} 23... Rh3 {[%clk
0:01:43.6]} 24. Re3 {[%clk 0:00:30.3]} 24... Bxh2+ {[%clk 0:01:35.3]} 25. Kg2
{[%clk 0:00:27.9]} 25... Rxe3 {[%clk 0:01:31.8]} 26. Bxe3 {[%clk 0:00:28.4]}
26... Bc7 {[%clk 0:01:25.5]} 27. Ne2 {[%clk 0:00:27.4]} 27... Bg4 {[%clk
0:01:23.9]} 28. Rd2 {[%clk 0:00:22.3]} 28... Rd8 {[%clk 0:01:07.9]} 29. Nd4
{[%clk 0:00:21]} 29... Bf4 {[%clk 0:01:03.3]} 30. Nc6 {[%clk 0:00:20.4]} 30...
Rd7 {[%clk 0:00:59.6]} 31. Nb4 {[%clk 0:00:16.9]} 31... Bf3+ {[%clk 0:00:58.5]}
32. Kg1 {[%clk 0:00:16.1]} 32... h5 {[%clk 0:00:52.7]} 33. Nxd5 {[%clk
0:00:15.5]} 33... Bxe3 {[%clk 0:00:47.2]} 34. fxe3 {[%clk 0:00:16.4]} 34... g4
{[%clk 0:00:41.8]} 35. Nf6+ {[%clk 0:00:16.5]} 35... Kf7 {[%clk 0:00:41.6]} 36.
Nxd7 {[%clk 0:00:17.3]} 36... h4 {[%clk 0:00:41.8]} 37. Ne5+ {[%clk 0:00:17.8]}
37... Kf6 {[%clk 0:00:41.3]} 38. Rd5 {[%clk 0:00:17.2]} 38... g3 {[%clk
0:00:38.7]} 39. Nxf3 {[%clk 0:00:16.9]} 39... exf3 {[%clk 0:00:38.8]} 40. Rh5
{[%clk 0:00:17.5]} 40... Kg6 {[%clk 0:00:33.6]} 41. Rxh4 {[%clk 0:00:17.5]}
41... Kg5 {[%clk 0:00:33.7]} 42. Rf4 {[%clk 0:00:18.2]} 42... f2+ {[%clk
0:00:33.2]} 43. Kg2 {[%clk 0:00:18.7]} 1-0

[Event "Late-Titled-Tuesday-Blitz-February-06-2024"]
[Site "Chess.com"]
[Date "2024.02.06"]
[Round "7"]
[White "BelaKis"]
[Black "LeninGuerra"]
[Result "1/2-1/2"]
[WhiteElo "2224"]
[BlackElo "2628"]
[TimeControl "180+1"]
[EndTime "15:17:27 PST"]
[Termination "Game drawn by repetition"]

1. d4 {[%clk 0:03:00.9]} 1... Nf6 {[%clk 0:02:59.3]} 2. c4 {[%clk 0:03:01.2]}
2... c5 {[%clk 0:02:58.8]} 3. d5 {[%clk 0:03:01.1]} 3... d6 {[%clk 0:02:58.7]}
4. Nc3 {[%clk 0:03:00.9]} 4... g6 {[%clk 0:02:58.4]} 5. e4 {[%clk 0:03:01.2]}
5... Bg7 {[%clk 0:02:58.5]} 6. h3 {[%clk 0:03:00.2]} 6... O-O {[%clk 0:02:58]}
7. Bg5 {[%clk 0:02:59]} 7... Nbd7 {[%clk 0:02:34.1]} 8. Nf3 {[%clk 0:02:50.9]}
8... h6 {[%clk 0:02:05.8]} 9. Be3 {[%clk 0:02:49.7]} 9... a6 {[%clk 0:02:03.2]}
10. a4 {[%clk 0:02:49.1]} 10... Rb8 {[%clk 0:02:00]} 11. Qd2 {[%clk 0:02:44.5]}
11... Kh7 {[%clk 0:01:57.1]} 12. Bd3 {[%clk 0:02:32.7]} 12... Re8 {[%clk
0:01:41.1]} 13. O-O {[%clk 0:02:31.9]} 13... e5 {[%clk 0:01:39.3]} 14. dxe6
{[%clk 0:02:20.1]} 14... Rxe6 {[%clk 0:01:37.2]} 15. Rad1 {[%clk 0:02:07.8]}
15... Qb6 {[%clk 0:01:11.7]} 16. Rfe1 {[%clk 0:01:51.7]} 16... Qb3 {[%clk
0:00:57.7]} 17. Qc2 {[%clk 0:01:34.3]} 17... Qxc2 {[%clk 0:00:56.1]} 18. Bxc2
{[%clk 0:01:35.2]} 18... Nb6 {[%clk 0:00:52.2]} 19. b3 {[%clk 0:01:28.2]} 19...
Bd7 {[%clk 0:00:49.7]} 20. a5 {[%clk 0:01:07.7]} 20... Na8 {[%clk 0:00:47.8]}
21. Nd5 {[%clk 0:00:56.9]} 21... Nxd5 {[%clk 0:00:40.1]} 22. exd5 {[%clk
0:00:56.3]} 22... Ree8 {[%clk 0:00:37.3]} 23. Bf4 {[%clk 0:00:56.5]} 23... Bf8
{[%clk 0:00:35.3]} 24. g4 {[%clk 0:00:40.7]} 24... Nc7 {[%clk 0:00:32.7]} 25.
Kg2 {[%clk 0:00:28.9]} 25... Rxe1 {[%clk 0:00:28.9]} 26. Rxe1 {[%clk 0:00:28.9]}
26... Re8 {[%clk 0:00:29.1]} 27. Rxe8 {[%clk 0:00:28.7]} 27... Nxe8 {[%clk
0:00:27.1]} 28. Nd2 {[%clk 0:00:23.5]} 28... Kg7 {[%clk 0:00:25.3]} 29. Bg3
{[%clk 0:00:19.3]} 29... f5 {[%clk 0:00:24]} 30. gxf5 {[%clk 0:00:17.7]} 30...
gxf5 {[%clk 0:00:22.8]} 31. Kf3 {[%clk 0:00:17]} 31... Be7 {[%clk 0:00:22.9]}
32. Nf1 {[%clk 0:00:14.1]} 32... Bg5 {[%clk 0:00:21.6]} 33. Ne3 {[%clk
0:00:14.2]} 33... Bxe3 {[%clk 0:00:21.3]} 34. fxe3 {[%clk 0:00:13.9]} 34... Kf6
{[%clk 0:00:21.4]} 35. e4 {[%clk 0:00:14.4]} 35... fxe4+ {[%clk 0:00:20.1]} 36.
Bxe4 {[%clk 0:00:15.3]} 36... Bf5 {[%clk 0:00:20.2]} 37. Bh4+ {[%clk 0:00:15.6]}
37... Ke5 {[%clk 0:00:20]} 38. Bg3+ {[%clk 0:00:15.3]} 38... Kf6 {[%clk
0:00:19]} 39. Bh4+ {[%clk 0:00:15.8]} 39... Ke5 {[%clk 0:00:19.4]} 40. Bg3+
{[%clk 0:00:16.3]} 40... Kf6 {[%clk 0:00:19.9]} 1/2-1/2

[Event "Late-Titled-Tuesday-Blitz-February-06-2024"]
[Site "Chess.com"]
[Date "2024.02.06"]
[Round "7"]
[White "kingofthenil"]
[Black "Msb2"]
[Result "0-1"]
[WhiteElo "2678"]
[BlackElo "2984"]
[TimeControl "180+1"]
[EndTime "15:17:29 PST"]
[Termination "Msb2 won on time"]

1. d4 {[%clk 0:03:00.9]} 1... d5 {[%clk 0:02:59.5]} 2. c4 {[%clk 0:03:01.2]}
2... e6 {[%clk 0:03:00]} 3. Nf3 {[%clk 0:03:01.3]} 3... Nf6 {[%clk 0:03:00.1]}
4. Nc3 {[%clk 0:03:00.5]} 4... Bb4 {[%clk 0:02:59.9]} 5. a3 {[%clk 0:03:00.1]}
5... Bxc3+ {[%clk 0:02:59.2]} 6. bxc3 {[%clk 0:03:01]} 6... O-O {[%clk
0:02:59.5]} 7. a4 {[%clk 0:03:00.2]} 7... c5 {[%clk 0:02:52.4]} 8. e3 {[%clk
0:02:58.5]} 8... Qa5 {[%clk 0:02:49.2]} 9. Ba3 {[%clk 0:02:51.7]} 9... Qxc3+
{[%clk 0:02:44.9]} 10. Nd2 {[%clk 0:02:51.2]} 10... Ne4 {[%clk 0:02:40.2]} 11.
Qc1 {[%clk 0:02:35.9]} 11... Qa5 {[%clk 0:02:37.2]} 12. Bd3 {[%clk 0:02:17.7]}
12... Rd8 {[%clk 0:02:08.6]} 13. Bxe4 {[%clk 0:02:09.8]} 13... dxe4 {[%clk
0:02:09.5]} 14. Bxc5 {[%clk 0:02:08.7]} 14... b6 {[%clk 0:02:05]} 15. Be7 {[%clk
0:02:06.9]} 15... Rd7 {[%clk 0:01:59.3]} 16. Ba3 {[%clk 0:02:06.2]} 16... Qg5
{[%clk 0:01:58.8]} 17. O-O {[%clk 0:02:05.3]} 17... Bb7 {[%clk 0:01:59.4]} 18.
Rb1 {[%clk 0:01:59.9]} 18... Na6 {[%clk 0:01:46.3]} 19. Rb5 {[%clk 0:01:59.7]}
19... Qg6 {[%clk 0:01:46.6]} 20. h4 {[%clk 0:01:54.5]} 20... Nc7 {[%clk
0:01:43.8]} 21. Rg5 {[%clk 0:01:54.2]} 21... Qh6 {[%clk 0:01:33.3]} 22. Qd1
{[%clk 0:01:51.3]} 22... f6 {[%clk 0:01:29.9]} 23. Rg3 {[%clk 0:01:41.8]} 23...
Qxh4 {[%clk 0:01:22.7]} 24. Rg4 {[%clk 0:01:05.4]} 24... Qh6 {[%clk 0:01:21]}
25. Rxe4 {[%clk 0:00:40.6]} 25... Bxe4 {[%clk 0:01:15.5]} 26. Nxe4 {[%clk
0:00:41.5]} 26... Qg6 {[%clk 0:01:15]} 27. Qf3 {[%clk 0:00:40.7]} 27... Rad8
{[%clk 0:01:14.3]} 28. Ng3 {[%clk 0:00:34.9]} 28... Qd3 {[%clk 0:01:11.3]} 29.
Bb2 {[%clk 0:00:25.9]} 29... Qxc4 {[%clk 0:01:08.7]} 30. Rc1 {[%clk 0:00:26]}
30... Qxa4 {[%clk 0:01:06.5]} 31. Nh5 {[%clk 0:00:26.5]} 31... Qb5 {[%clk
0:01:04.5]} 32. Ba1 {[%clk 0:00:25.4]} 32... Qf5 {[%clk 0:01:00]} 33. Qe2 {[%clk
0:00:19.5]} 33... Ne8 {[%clk 0:00:58.9]} 34. e4 {[%clk 0:00:17.1]} 34... Qg5
{[%clk 0:00:59.3]} 35. Rd1 {[%clk 0:00:13.1]} 35... Nd6 {[%clk 0:00:55.6]} 36.
d5 {[%clk 0:00:10.3]} 36... e5 {[%clk 0:00:46.4]} 37. Bb2 {[%clk 0:00:09.7]}
37... Nxe4 {[%clk 0:00:44.5]} 38. Nxg7 {[%clk 0:00:09.9]} 38... Rxg7 {[%clk
0:00:41.3]} 39. Qxe4 {[%clk 0:00:10.3]} 39... Qg4 {[%clk 0:00:42]} 40. Qxg4
{[%clk 0:00:03.4]} 40... Rxg4 {[%clk 0:00:42.9]} 41. Ba3 {[%clk 0:00:01.9]}
41... Rd4 {[%clk 0:00:42.3]} 42. Rc1 {[%clk 0:00:01.3]} 42... R4xd5 {[%clk
0:00:42.3]} 43. Rc7 {[%clk 0:00:02.1]} 43... R8d7 {[%clk 0:00:42.2]} 0-1

[Event "Late-Titled-Tuesday-Blitz-February-06-2024"]
[Site "Chess.com"]
[Date "2024.02.06"]
[Round "7"]
[White "ACollins05"]
[Black "ChessBrainiacOnTwitch"]
[Result "1-0"]
[WhiteElo "2458"]
[BlackElo "2822"]
[TimeControl "180+1"]
[EndTime "15:17:29 PST"]
[Termination "ACollins05 won by resignation"]

1. d4 {[%clk 0:03:00.9]} 1... Nf6 {[%clk 0:02:47.3]} 2. c4 {[%clk 0:03:00.5]}
2... e6 {[%clk 0:02:41.6]} 3. Nf3 {[%clk 0:03:00.2]} 3... d5 {[%clk 0:02:36.5]}
4. g3 {[%clk 0:02:59.8]} 4... Bb4+ {[%clk 0:02:23.8]} 5. Nbd2 {[%clk 0:02:58.1]}
5... O-O {[%clk 0:02:23.7]} 6. Bg2 {[%clk 0:02:57.6]} 6... b6 {[%clk 0:02:24.4]}
7. O-O {[%clk 0:02:56]} 7... Bb7 {[%clk 0:02:25.1]} 8. Ne5 {[%clk 0:02:55.9]}
8... Nbd7 {[%clk 0:02:24.7]} 9. Qa4 {[%clk 0:02:54.9]} 9... Bd6 {[%clk 0:02:18]}
10. Nxd7 {[%clk 0:02:54.8]} 10... Nxd7 {[%clk 0:02:17]} 11. cxd5 {[%clk
0:02:54.4]} 11... exd5 {[%clk 0:02:17.9]} 12. Nc4 {[%clk 0:02:44]} 12... Be7
{[%clk 0:02:04.4]} 13. Bf4 {[%clk 0:02:31.6]} 13... a6 {[%clk 0:01:50.3]} 14.
Ne5 {[%clk 0:02:28.2]} 14... b5 {[%clk 0:01:41.2]} 15. Qc2 {[%clk 0:02:27]}
15... Nxe5 {[%clk 0:01:22.1]} 16. Bxe5 {[%clk 0:02:23.4]} 16... Rc8 {[%clk
0:01:22.5]} 17. Rac1 {[%clk 0:02:20]} 17... c5 {[%clk 0:01:21.1]} 18. dxc5
{[%clk 0:02:20]} 18... Bxc5 {[%clk 0:01:20]} 19. Qd3 {[%clk 0:02:15.9]} 19...
Re8 {[%clk 0:01:15.6]} 20. Bf4 {[%clk 0:02:14.4]} 20... Qe7 {[%clk 0:01:13.1]}
21. Bxd5 {[%clk 0:01:44.8]} 21... Rcd8 {[%clk 0:00:29.9]} 22. e4 {[%clk
0:01:44]} 22... Bxd5 {[%clk 0:00:27.9]} 23. exd5 {[%clk 0:01:44.1]} 23... Bd6
{[%clk 0:00:22]} 24. Bxd6 {[%clk 0:01:40.3]} 24... Rxd6 {[%clk 0:00:22.9]} 25.
Rc6 {[%clk 0:01:36.5]} 25... Red8 {[%clk 0:00:23]} 26. Rxd6 {[%clk 0:01:35.1]}
26... Rxd6 {[%clk 0:00:23.9]} 27. Rc1 {[%clk 0:01:33.1]} 27... g6 {[%clk
0:00:23.2]} 28. Rc6 {[%clk 0:01:24.5]} 28... h5 {[%clk 0:00:21.3]} 29. h4 {[%clk
0:01:16.1]} 29... Rd8 {[%clk 0:00:17.8]} 30. d6 {[%clk 0:01:12]} 30... Qe1+
{[%clk 0:00:15.6]} 31. Kg2 {[%clk 0:01:12.1]} 31... Qe6 {[%clk 0:00:12.2]} 32.
Rxa6 {[%clk 0:01:03.9]} 32... b4 {[%clk 0:00:12.7]} 33. a3 {[%clk 0:00:56.4]}
33... bxa3 {[%clk 0:00:12.6]} 34. bxa3 {[%clk 0:00:57.3]} 34... Qd7 {[%clk
0:00:10.3]} 35. Qd5 {[%clk 0:00:48.8]} 35... Rc8 {[%clk 0:00:08.2]} 36. Ra8
{[%clk 0:00:44.9]} 36... Rxa8 {[%clk 0:00:07]} 37. Qxa8+ {[%clk 0:00:45.8]}
37... Kg7 {[%clk 0:00:07.9]} 38. Qd5 {[%clk 0:00:45.8]} 38... f5 {[%clk
0:00:05.4]} 39. a4 {[%clk 0:00:44]} 39... f4 {[%clk 0:00:05.3]} 40. a5 {[%clk
0:00:42.5]} 40... Kf8 {[%clk 0:00:03.4]} 41. a6 {[%clk 0:00:41]} 41... fxg3
{[%clk 0:00:02.9]} 42. Qa8+ {[%clk 0:00:36.4]} 42... Kf7 {[%clk 0:00:02.9]} 43.
Qb7 {[%clk 0:00:36.6]} 1-0

[Event "Late-Titled-Tuesday-Blitz-February-06-2024"]
[Site "Chess.com"]
[Date "2024.02.06"]
[Round "7"]
[White "NovakRatko"]
[Black "BeardedNM"]
[Result "1-0"]
[WhiteElo "2399"]
[BlackElo "2246"]
[TimeControl "180+1"]
[EndTime "15:17:31 PST"]
[Termination "NovakRatko won on time"]

1. d4 {[%clk 0:02:58.9]} 1... e6 {[%clk 0:02:55.4]} 2. c4 {[%clk 0:02:58.5]}
2... Nf6 {[%clk 0:02:55.4]} 3. a3 {[%clk 0:02:59.1]} 3... d5 {[%clk 0:02:55.9]}
4. Nc3 {[%clk 0:02:59.4]} 4... c5 {[%clk 0:02:53.9]} 5. dxc5 {[%clk 0:02:58.6]}
5... Bxc5 {[%clk 0:02:49.1]} 6. cxd5 {[%clk 0:02:58.7]} 6... exd5 {[%clk
0:02:50]} 7. b4 {[%clk 0:02:58.7]} 7... Bb6 {[%clk 0:02:47.2]} 8. e3 {[%clk
0:02:50.4]} 8... O-O {[%clk 0:02:45.2]} 9. Nf3 {[%clk 0:02:50.3]} 9... Nc6
{[%clk 0:02:40.4]} 10. Na4 {[%clk 0:02:49.9]} 10... Bc7 {[%clk 0:02:29.2]} 11.
Be2 {[%clk 0:02:46.6]} 11... Re8 {[%clk 0:02:18.3]} 12. O-O {[%clk 0:02:46.1]}
12... Bg4 {[%clk 0:01:50.2]} 13. Bb2 {[%clk 0:02:45.6]} 13... Ne4 {[%clk
0:01:44]} 14. Nc3 {[%clk 0:02:33.3]} 14... Ne5 {[%clk 0:00:38.1]} 15. Nxe4
{[%clk 0:01:30.9]} 15... dxe4 {[%clk 0:00:33.9]} 16. Nxe5 {[%clk 0:01:26.1]}
16... Bxe2 {[%clk 0:00:20.1]} 17. Qxe2 {[%clk 0:01:22.1]} 17... Bxe5 {[%clk
0:00:20.2]} 18. Bxe5 {[%clk 0:01:02.2]} 18... Rxe5 {[%clk 0:00:19.9]} 19. Rad1
{[%clk 0:00:58.1]} 19... Rd5 {[%clk 0:00:20.1]} 20. Rxd5 {[%clk 0:00:57.5]}
20... Qxd5 {[%clk 0:00:21]} 21. Rd1 {[%clk 0:00:57.9]} 21... Qe6 {[%clk
0:00:18.9]} 22. Qd2 {[%clk 0:00:53.9]} 22... h5 {[%clk 0:00:17.9]} 23. Qd7
{[%clk 0:00:51.7]} 23... Qxd7 {[%clk 0:00:15.9]} 24. Rxd7 {[%clk 0:00:51.3]}
24... Rc8 {[%clk 0:00:16.4]} 25. g3 {[%clk 0:00:49.7]} 25... Rc3 {[%clk
0:00:15.9]} 26. a4 {[%clk 0:00:47.4]} 26... Ra3 {[%clk 0:00:14.3]} 27. a5 {[%clk
0:00:46.5]} 27... b6 {[%clk 0:00:09]} 28. Rxa7 {[%clk 0:00:46.1]} 28... bxa5
{[%clk 0:00:07]} 29. Rxa5 {[%clk 0:00:45.9]} 29... Rb3 {[%clk 0:00:07.3]} 30.
Rb5 {[%clk 0:00:44.9]} 30... h4 {[%clk 0:00:06.5]} 31. gxh4 {[%clk 0:00:44.6]}
31... Kh7 {[%clk 0:00:05.4]} 32. Kg2 {[%clk 0:00:44.8]} 32... Kg6 {[%clk
0:00:05]} 33. Kg3 {[%clk 0:00:44.9]} 33... f5 {[%clk 0:00:04.6]} 34. Kf4 {[%clk
0:00:44.2]} 34... Rb2 {[%clk 0:00:03.7]} 35. Rb6+ {[%clk 0:00:44.3]} 35... Kh7
{[%clk 0:00:03.4]} 36. Kg3 {[%clk 0:00:38.4]} 36... g6 {[%clk 0:00:02.5]} 37. h3
{[%clk 0:00:37]} 37... Kh6 {[%clk 0:00:02.7]} 38. Rb7 {[%clk 0:00:31.3]} 1-0

[Event "Late-Titled-Tuesday-Blitz-February-06-2024"]
[Site "Chess.com"]
[Date "2024.02.06"]
[Round "7"]
[White "katharinareinecke"]
[Black "yuriydovzik"]
[Result "0-1"]
[WhiteElo "1971"]
[BlackElo "2205"]
[TimeControl "180+1"]
[EndTime "15:17:32 PST"]
[Termination "yuriydovzik won by checkmate"]

1. e4 {[%clk 0:03:00.9]} 1... c6 {[%clk 0:02:58.4]} 2. Nf3 {[%clk 0:02:58.4]}
2... d5 {[%clk 0:02:55.4]} 3. d3 {[%clk 0:02:58.1]} 3... g6 {[%clk 0:02:52.1]}
4. e5 {[%clk 0:02:56.5]} 4... Bg4 {[%clk 0:02:45.9]} 5. h3 {[%clk 0:02:50.1]}
5... Bxf3 {[%clk 0:02:44.5]} 6. Qxf3 {[%clk 0:02:50.8]} 6... Bg7 {[%clk
0:02:37.6]} 7. d4 {[%clk 0:02:50.4]} 7... e6 {[%clk 0:02:33.5]} 8. c3 {[%clk
0:02:49.6]} 8... c5 {[%clk 0:02:29.8]} 9. Be2 {[%clk 0:02:44.6]} 9... Nc6 {[%clk
0:02:28]} 10. Be3 {[%clk 0:02:41.9]} 10... Nge7 {[%clk 0:02:25.6]} 11. g4 {[%clk
0:02:37.4]} 11... Qb6 {[%clk 0:02:19.9]} 12. O-O {[%clk 0:01:57]} 12... cxd4
{[%clk 0:02:06.4]} 13. cxd4 {[%clk 0:01:51.5]} 13... Qxb2 {[%clk 0:02:04.3]} 14.
Nd2 {[%clk 0:01:45.7]} 14... Nxd4 {[%clk 0:02:02.8]} 15. Bxd4 {[%clk 0:01:43.3]}
15... Qxd4 {[%clk 0:01:54.7]} 16. Bb5+ {[%clk 0:01:33.9]} 16... Nc6 {[%clk
0:01:47]} 17. Nb3 {[%clk 0:00:59.5]} 17... Qxe5 {[%clk 0:01:45.6]} 18. Nc5
{[%clk 0:00:52.1]} 18... O-O {[%clk 0:01:34.5]} 19. Nxb7 {[%clk 0:00:48.8]}
19... Nd4 {[%clk 0:01:29.3]} 20. Qd3 {[%clk 0:00:28.8]} 20... Nxb5 {[%clk
0:01:13.6]} 21. Qxb5 {[%clk 0:00:27.7]} 21... Rab8 {[%clk 0:01:07.7]} 22. Qa6
{[%clk 0:00:25.5]} 22... Qc3 {[%clk 0:00:57]} 23. Kg2 {[%clk 0:00:20]} 23... Qb4
{[%clk 0:00:44.2]} 24. Rab1 {[%clk 0:00:19]} 24... Qe4+ {[%clk 0:00:42.1]} 25.
Kg1 {[%clk 0:00:16.8]} 25... Bd4 {[%clk 0:00:29.5]} 26. Rb3 {[%clk 0:00:16.5]}
26... Qf4 {[%clk 0:00:24]} 27. Qc6 {[%clk 0:00:15.7]} 27... Rfc8 {[%clk
0:00:19.2]} 28. Qd7 {[%clk 0:00:15.3]} 28... Rc7 {[%clk 0:00:14.6]} 29. Qb5
{[%clk 0:00:11.9]} 29... Rcxb7 {[%clk 0:00:13.9]} 30. Qxb7 {[%clk 0:00:12.2]}
30... Rxb7 {[%clk 0:00:13.7]} 31. Rxb7 {[%clk 0:00:12.8]} 31... Qg3+ {[%clk
0:00:13.1]} 32. Kh1 {[%clk 0:00:13.1]} 32... Qxh3+ {[%clk 0:00:13.2]} 33. Kg1
{[%clk 0:00:13.5]} 33... Qg3+ {[%clk 0:00:12.8]} 34. Kh1 {[%clk 0:00:13.9]}
34... Bxf2 {[%clk 0:00:12.7]} 35. Rc1 {[%clk 0:00:09.4]} 35... Qh3# {[%clk
0:00:12.2]} 0-1